bitfinex/quotes_ETHUSD_20251122
["timestamp","ask_amount","ask_price","bid_price","bid_amount"]
[1763790114907,0.405504,2733.1,2732.5,0.4818]
[1763790115092,0.405504,2732.9,2732.5,0.4818]
[1763790115500,0.407504,2733.2,2732.5,0.4818]
[1763790116002,0.405504,2733.0,2732.6,0.4818]
[1763790116371,0.405504,2732.8,2732.3,0.6058]
[1763790116601,0.405504,2732.6,2732.3,0.4818]
[1763790116805,0.405504,2732.8,2732.3,0.4818]
[1763790116974,0.405504,2732.6,2732.3,0.4818]
[1763790117382,0.482204,2733.1,2732.5,0.4752]
[1763790117782,0.0685,2732.6,2732.0,0.4818]
[1763790118013,0.0685,2732.6,2732.1,0.124]
[1763790118180,0.405504,2733.0,2732.2,0.4818]
[1763790118419,0.405504,2732.8,2732.0,0.6058]
[1763790118850,0.405504,2732.8,2732.1,0.4818]
[1763790119745,0.405504,2733.0,2732.0,0.6058]
[1763790119929,0.405504,2732.8,2732.0,0.6058]
[1763790120263,0.405504,2732.8,2731.9,0.001]
[1763790120264,0.405504,2732.6,2731.9,0.001]
[1763790120430,0.405504,2732.4,2731.9,0.4828]
[1763790120618,0.405504,2732.6,2731.9,0.4828]
[1763790121115,0.405504,2732.7,2731.9,0.4828]
[1763790121323,0.886304,2732.7,2731.9,0.4828]
[1763790121529,1.44147803,2732.7,2731.9,0.4828]
[1763790121846,0.96067803,2732.7,2731.9,0.4828]
[1763790123252,1.44147803,2732.7,2731.9,0.4828]
[1763790125823,0.96067803,2732.7,2731.9,0.4828]
[1763790126026,0.405504,2732.5,2731.9,0.001]
[1763790126252,0.92396617,2732.5,2731.9,0.001]
[1763790126529,1.38946617,2732.5,2731.9,0.001]
[1763790126929,0.871004,2732.5,2731.9,0.001]
[1763790127162,0.871004,2732.8,2732.0,0.474]
[1763790128058,0.405504,2732.9,2732.0,0.474]
[1763790128228,0.74396838,2732.9,2732.0,0.474]
[1763790128640,1.52364276,2732.9,2732.0,0.474]
[1763790128863,0.19891428,2732.8,2732.0,0.474]
[1763790129161,1.18517838,2732.9,2732.0,0.474]
[1763790129349,0.002,2733.2,2732.8,0.4611]
[1763790129557,0.002,2733.2,2733.1,0.6549]
[1763790129930,0.002,2733.2,2733.1,1.1289]
[1763790130266,0.405504,2733.1,2732.6,0.474]
[1763790130560,0.405504,2733.1,2732.4,0.124]
[1763790130766,0.407504,2733.2,2732.4,0.124]
[1763790130974,0.407504,2733.2,2732.5,0.474]
[1763790131377,0.405504,2733.0,2732.5,0.474]
[1763790131586,0.002,2733.2,2732.5,0.474]
[1763790132347,0.002,2733.2,2732.6,0.124]
[1763790132348,0.407504,2733.2,2732.6,0.124]
[1763790132549,0.405504,2733.0,2732.5,0.474]
[1763790132976,0.405504,2732.8,2732.5,0.474]
[1763790133282,0.002,2733.2,2732.5,0.474]
[1763790133283,0.04773393,2733.2,2732.5,0.474]
[1763790133506,0.405504,2733.0,2732.3,0.124]
[1763790133713,0.04573895,2732.9,2732.2,0.474]
[1763790133861,0.405504,2732.8,2732.3,0.124]
[1763790134303,0.405504,2732.8,2732.3,0.598]
[1763790135262,0.405504,2732.3,2731.9,0.001]
[1763790135715,0.405504,2732.5,2732.0,0.474]
[1763790136406,0.4655,2732.6,2732.0,0.474]
[1763790136407,0.405504,2732.7,2732.0,0.474]
[1763790136626,1.43836958,2732.7,2732.0,0.474]
[1763790136764,1.43836958,2732.7,2731.9,0.001]
[1763790136965,0.405504,2732.5,2731.9,0.001]
[1763790137520,0.405504,2732.6,2731.9,0.475]
[1763790138201,0.405504,2732.8,2731.9,0.475]
[1763790138698,0.405504,2732.8,2731.9,0.001]
[1763790139010,0.405504,2732.6,2731.9,0.475]
[1763790140006,0.405504,2732.8,2731.9,0.475]
[1763790140170,0.0767,2733.0,2731.9,0.475]
[1763790140369,0.405504,2732.8,2732.0,0.124]
[1763790140579,0.0457423,2732.7,2732.0,0.124]
[1763790140909,0.405504,2732.6,2732.1,0.6678]
[1763790141130,0.0767,2733.0,2732.1,0.6678]
[1763790141131,0.405504,2732.9,2732.2,0.474]
[1763790142342,0.405504,2732.2,2731.9,0.001]
[1763790142631,0.405504,2732.7,2731.9,0.001]
[1763790142794,0.405504,2732.7,2731.9,0.475]
[1763790143720,0.871004,2732.7,2731.9,0.475]
[1763790144432,0.405504,2732.7,2731.9,0.475]
[1763790145298,0.405504,2732.7,2732.6,0.4611]
[1763790145695,0.0837,2732.7,2732.2,0.6678]
[1763790145919,0.405504,2732.9,2732.6,0.4611]
[1763790146127,0.405504,2732.9,2732.2,0.6678]
[1763790146309,0.002,2733.2,2732.8,0.4611]
[1763790146527,0.002,2733.2,2732.3,0.474]
[1763790146715,0.407504,2733.2,2732.3,0.474]
[1763790147038,0.405504,2733.0,2732.3,0.474]
[1763790147932,0.0837,2732.4,2731.9,0.001]
[1763790148233,3.99585051,2732.0,2731.9,0.001]
[1763790150039,4.45825051,2732.0,2731.9,0.001]
[1763790150531,3.99585051,2732.0,2731.9,0.001]
[1763790150733,0.405504,2732.0,2731.9,0.4621]
[1763790152340,0.405504,2732.0,2731.9,0.001]
[1763790153928,0.489204,2732.0,2731.9,0.001]
[1763790155159,0.405504,2732.0,2731.9,0.4621]
[1763790155753,0.405504,2732.0,2731.9,0.9458]
[1763790156059,0.002,2732.8,2731.9,0.9458]
[1763790156264,0.002,2732.8,2732.3,0.4861]
[1763790156765,0.002,2732.8,2732.1,0.1816]
[1763790156766,0.04774063,2732.8,2732.1,0.1816]
[1763790157068,0.002,2732.8,2732.7,0.4861]
[1763790157233,0.405504,2732.7,2732.0,0.4597]
[1763790157418,0.4794,2732.8,2732.0,0.4597]
[1763790157419,0.405504,2732.5,2732.0,0.4597]
[1763790157619,0.405504,2732.5,2732.4,0.4861]
[1763790157960,0.407504,2732.8,2732.4,0.4861]
[1763790158159,0.002,2732.8,2732.5,0.4597]
[1763790159768,0.407504,2732.8,2732.2,0.4597]
[1763790159975,0.405504,2732.6,2732.2,0.4597]
[1763790160968,0.407504,2732.8,2732.2,0.4597]
[1763790161459,0.405504,2732.6,2732.2,0.4597]
[1763790162371,0.407504,2732.8,2732.2,0.4597]
[1763790162570,0.405504,2732.6,2732.2,0.4597]
[1763790163538,0.405504,2732.7,2732.2,0.4597]
[1763790164382,0.405504,2732.7,2732.2,0.7823876]
[1763790164596,0.405504,2732.7,2732.6,0.4861]
[1763790164742,0.407504,2732.8,2732.6,0.4861]
[1763790165339,0.002,2732.8,2732.7,0.4861]
[1763790166076,0.405504,2732.7,2732.2,0.7823876]
[1763790166454,0.002,2732.8,2732.3,0.4597]
[1763790169177,0.002,2732.8,2732.7,0.4861]
[1763790169379,0.407504,2732.8,2732.7,0.4861]
[1763790170685,0.407504,2732.8,2732.5,0.4597]
[1763790171182,0.407504,2732.8,2732.3,0.4597]
[1763790172180,0.407504,2732.8,2732.7,0.4861]
[1763790173289,0.407504,2732.8,2732.4,0.4597]
[1763790174186,0.407504,2732.8,2732.1,3.22687596]
[1763790174383,0.407504,2732.8,2732.2,0.9063876]
[1763790174590,0.405504,2732.6,2732.1,2.76717596]
[1763790174818,0.405504,2732.6,2732.1,2.89117596]
[1763790175002,0.405504,2732.6,2732.1,3.22687596]
[1763790175516,0.405504,2732.6,2732.1,2.76717596]
[1763790175716,0.405504,2732.6,2732.2,0.4597]
[1763790176594,0.405504,2732.6,2732.0,3.35087596]
[1763790176794,0.405504,2732.6,2732.0,3.68606356]
[1763790177292,0.405504,2732.6,2732.0,3.22687596]
[1763790177498,0.882904,2732.6,2732.0,2.76717596]
[1763790177693,0.882904,2732.6,2732.0,3.22687596]
[1763790177882,0.882904,2732.6,2732.0,2.76717596]
[1763790178298,3.50776352,2732.5,2732.0,2.76717596]
[1763790178525,0.405504,2732.4,2732.0,2.76717596]
[1763790178704,3.95140467,2732.5,2732.0,2.76717596]
[1763790178705,0.405504,2732.5,2732.4,0.4861]
[1763790179408,0.407504,2732.8,2732.4,0.9458]
[1763790179908,0.407504,2732.8,2732.7,0.4861]
[1763790180291,0.002,2732.8,2732.7,0.4861]
[1763790180897,0.002,2732.8,2732.7,0.9458]
[1763790181107,0.002,2732.8,2732.7,0.4861]
[1763790181321,0.002,2732.8,2732.7,0.9458]
[1763790182823,0.002,2732.8,2732.7,1.0698]
[1763790183709,0.002,2732.8,2732.7,0.4861]
[1763790184397,0.002,2732.8,2732.7,0.9458]
[1763790184808,0.002,2733.1,2732.8,0.90699264]
[1763790185008,0.002,2733.4,2733.1,7.98539784]
[1763790185208,0.002,2733.4,2733.3,0.4861]
[1763790185441,0.002,2733.4,2733.3,0.6101]
[1763790185734,0.002,2733.4,2733.3,1.081]
[1763790186802,0.002,2733.8,2733.3,2.08799264]
[1763790187036,0.002,2733.8,2733.7,0.4904]
[1763790187339,0.002,2733.8,2733.7,4.74334587]
[1763790187647,0.002,2733.8,2733.7,1.0853]
[1763790191919,0.002,2733.8,2733.7,0.9613]
[1763790192315,0.002,2733.8,2733.7,1.0853]
[1763790193849,0.002,2733.8,2733.7,1.28452926]
[1763790194923,0.002,2733.8,2733.3,0.90699264]
[1763790194924,0.002,2733.8,2733.2,0.4709]
[1763790195162,0.002,2733.8,2733.1,0.1816]
[1763790195163,0.405504,2733.7,2733.1,0.1816]
[1763790195336,0.895004,2733.7,2733.1,0.124]
[1763790195868,0.405504,2733.5,2733.1,0.124]
[1763790196271,0.405504,2733.1,2732.4,0.4709]
[1763790196428,0.405504,2733.1,2731.8,0.1816]
[1763790196429,0.405504,2733.1,2732.5,0.124]
[1763790197164,0.405504,2733.0,2732.4,0.124]
[1763790197574,0.405504,2733.0,2731.9,0.001]
[1763790197575,0.0767,2732.9,2731.9,0.001]
[1763790197798,0.405504,2732.8,2732.2,0.124]
[1763790200056,0.4939,2733.3,2732.7,0.4904]
[1763790200254,0.405504,2733.2,2732.3,0.4709]
[1763790200659,1.47352945,2733.2,2732.3,0.4709]
[1763790201183,0.97962945,2733.2,2732.3,0.4709]
[1763790201987,0.97962945,2733.2,2732.4,0.42549245]
[1763790202191,1.47352945,2733.2,2732.3,0.4709]
[1763790202342,1.47352945,2733.2,2732.3,0.4719]
[1763790202780,0.97962945,2733.2,2732.3,0.4719]
[1763790203148,0.405504,2733.4,2732.3,0.4719]
[1763790203380,0.405504,2733.4,2732.4,0.42559258]
[1763790203782,0.002,2733.5,2732.5,0.4709]
[1763790204168,0.405504,2733.4,2732.5,0.4709]
[1763790205087,0.002,2733.5,2732.5,0.4709]
[1763790205305,0.002,2733.5,2733.3,0.4904]
[1763790206151,0.0555,2733.4,2733.0,0.124]
[1763790206358,0.5760161,2733.5,2733.0,0.5949]
[1763790206888,0.9815201,2733.5,2733.4,0.4904]
[1763790207994,0.9815201,2733.5,2733.1,0.4709]
[1763790207995,0.405504,2733.4,2733.1,0.4709]
[1763790208292,0.002,2733.5,2733.4,0.4904]
[1763790208475,0.002,2733.5,2733.4,0.9613]
[1763790210679,0.002,2733.5,2733.4,1.0853]
[1763790211760,0.002,2733.5,2733.4,1.55970134]
[1763790212757,0.002,2733.5,2733.4,6.12514133]
[1763790215298,0.002,2733.5,2733.4,2.46669398]
[1763790216611,0.002,2733.5,2733.4,6.12514133]
[1763790218729,0.002,2733.5,2733.4,6.22514133]
[1763790219779,0.002,2733.5,2733.4,6.12514133]
[1763790220081,0.002,2733.5,2733.4,6.22514133]
[1763790220390,0.002,2733.5,2733.4,6.12614133]
[1763790220581,0.002,2733.5,2733.4,6.22614133]
[1763790221779,0.002,2733.5,2733.4,6.00214133]
[1763790222206,0.002,2733.5,2733.4,6.12614133]
[1763790222517,0.002,2733.5,2733.4,2.46769398]
[1763790222713,0.002,2733.5,2733.4,6.12614133]
[1763790224385,0.002,2733.5,2733.4,6.22614133]
[1763790228918,0.002,2733.5,2733.4,2.46769398]
[1763790229124,0.002,2733.5,2733.4,5.11086994]
[1763790229290,0.002,2733.5,2733.4,5.23486994]
[1763790230795,0.002,2733.5,2733.4,5.11086994]
[1763790231123,0.002,2733.5,2733.4,8.89331729]
[1763790232026,0.002,2733.5,2733.4,5.23486994]
[1763790234957,0.002,2733.5,2733.4,8.89331729]
[1763790235231,0.002,2733.5,2733.4,8.99331729]
[1763790238430,0.002,2733.8,2733.7,0.1]
[1763790238738,0.002,2733.8,2733.7,0.97281686]
[1763790239042,0.002,2733.8,2733.7,6.02165537]
[1763790242007,0.002,2733.8,2733.7,6.14565537]
[1763790243951,0.002,2733.8,2733.7,8.91083133]
[1763790244144,0.002,2733.8,2733.7,15.38083133]
[1763790246343,0.002,2733.8,2733.7,20.34120777]
[1763790248954,0.002,2734.1,2734.0,7.42781307]
[1763790249123,0.002,2734.1,2734.0,16.05817084]
[1763790251320,0.002,2734.1,2734.0,16.50823998]
[1763790252947,0.002,2734.1,2734.0,15.83417084]
[1763790253251,0.0726,2734.1,2734.0,3.87173373]
[1763790253413,0.5472,2734.1,2733.4,3.2385773]
[1763790253617,0.07,2733.5,2733.4,0.47540134]
[1763790253836,0.07,2733.5,2733.4,0.125]
[1763790254039,0.07,2733.5,2733.4,1.03199264]
[1763790254275,0.5452,2733.5,2733.4,1.03199264]
[1763790254971,0.07,2733.5,2733.4,1.03199264]
[1763790255142,0.07,2733.5,2733.4,0.125]
[1763790255342,0.5452,2733.5,2733.4,0.125]
[1763790255753,0.950704,2733.5,2733.4,0.001]
[1763790255939,0.950704,2733.5,2733.4,0.125]
[1763790257543,0.950704,2733.5,2733.4,0.001]
[1763790260582,0.07,2733.5,2733.4,0.001]
[1763790261172,0.07,2733.5,2733.4,0.3669591]
[1763790261373,0.4772,2733.8,2733.4,0.3669591]
[1763790261564,0.074,2733.5,2733.4,0.001]
[1763790261889,0.074,2733.5,2733.4,0.125]
[1763790262600,0.4772,2733.8,2733.4,3.78342082]
[1763790263180,0.4772,2733.8,2733.5,0.90699264]
[1763790263354,0.002,2733.8,2733.5,0.90699264]
[1763790263554,0.4807,2733.8,2733.6,0.47904135]
[1763790264061,0.0706,2733.7,2733.4,0.90799264]
[1763790264416,0.4807,2733.8,2733.5,1.03099264]
[1763790264417,0.002,2733.8,2733.5,1.03099264]
[1763790264890,0.002,2733.8,2733.7,1.35819264]
[1763790265252,0.002,2733.8,2733.7,0.90699264]
[1763790265253,0.0726,2733.8,2733.7,0.90699264]
[1763790265450,0.0726,2733.8,2733.7,1.2864095]
[1763790265648,0.0726,2733.8,2733.7,1.4104095]
[1763790265878,0.0726,2733.8,2733.7,5.06845537]
[1763790266081,0.002,2733.8,2733.7,5.06845537]
[1763790266288,0.002,2733.8,2733.7,8.85943133]
[1763790268267,0.002,2733.8,2733.7,15.32943133]
[1763790270496,0.002,2733.8,2733.7,15.20543133]
[1763790270658,0.002,2733.8,2733.7,15.32943133]
[1763790273497,0.002,2733.8,2733.7,14.85283133]
[1763790273808,0.002,2733.8,2733.7,8.85943133]
[1763790274606,0.002,2733.8,2733.7,8.38283133]
[1763790275129,0.002,2733.8,2733.7,8.85943133]
[1763790278430,0.002,2734.1,2733.9,2.76117596]
[1763790278601,0.002,2734.1,2734.0,7.24653803]
[1763790278806,0.002,2734.1,2734.0,7.69873803]
[1763790279002,0.002,2734.1,2734.0,8.60573067]
[1763790279924,0.002,2734.1,2734.0,15.07573067]
[1763790282747,0.002,2734.1,2734.0,14.92875067]
[1763790283454,0.002,2734.1,2734.0,15.05275067]
[1763790284939,0.002,2734.1,2734.0,14.92875067]
[1763790285254,0.002,2734.1,2734.0,15.05275067]
[1763790285440,0.002,2734.1,2734.0,8.58275067]
[1763790290738,0.0953,2734.1,2734.0,6.54795803]
[1763790290943,0.002,2734.1,2734.0,7.12355803]
[1763790291165,0.002,2734.1,2734.0,8.13055067]
[1763790293368,0.002,2734.1,2734.0,8.58275067]
[1763790297469,0.002,2734.4,2734.3,2.85917596]
[1763790297774,0.002,2734.4,2734.3,3.72069356]
[1763790298779,0.002,2734.4,2734.3,7.83013673]
[1763790298946,0.002,2734.4,2734.3,7.37793673]
[1763790299546,0.0953,2734.4,2734.3,6.92633673]
[1763790299966,0.002,2734.4,2734.3,7.37793673]
[1763790300174,0.002,2734.4,2734.3,7.83013673]
[1763790300383,0.002,2734.4,2734.3,7.37793673]
[1763790302384,0.002,2734.4,2734.3,12.23842614]
[1763790302759,0.0953,2734.4,2734.3,7.60932937]
[1763790302963,0.0953,2734.4,2734.3,7.73332937]
[1763790303482,0.002,2734.4,2734.3,8.28492937]
[1763790303681,0.002,2734.4,2734.3,12.23842614]
[1763790304159,0.002,2734.7,2734.5,2.75517596]
[1763790304482,0.002,2734.7,2734.6,3.79699282]
[1763790304792,0.002,2734.7,2734.6,4.24919282]
[1763790304955,0.002,2734.7,2734.6,5.15618546]
[1763790305150,0.002,2734.7,2734.6,4.25238546]
[1763790305151,0.4932,2734.7,2734.6,4.25238546]
[1763790305474,0.002,2734.7,2734.6,8.36082741]
[1763790306488,0.002,2734.7,2734.6,8.82452741]
[1763790306695,0.002,2734.7,2734.6,8.36082741]
[1763790307756,0.002,2734.7,2734.6,15.29452741]
[1763790310716,0.002,2735.0,2734.9,2.84917596]
[1763790310854,0.002,2735.0,2734.9,3.25809356]
[1763790311068,0.002,2735.0,2734.9,3.74729356]
[1763790312484,0.002,2735.0,2734.9,7.86743438]
[1763790312686,0.002,2735.0,2734.9,18.74572379]
[1763790313930,0.002,2735.0,2734.9,14.68072702]
[1763790314096,0.0669,2735.0,2734.9,14.06752702]
[1763790314270,0.5472,2735.0,2734.9,14.19152702]
[1763790314599,0.0669,2735.0,2734.9,14.19152702]
[1763790315365,0.0669,2735.0,2734.9,12.99961678]
[1763790315366,0.5472,2735.0,2734.9,12.99961678]
[1763790315595,0.5472,2735.0,2734.9,13.90660942]
[1763790315790,0.0669,2735.0,2734.9,13.90660942]
[1763790317300,0.5472,2735.0,2734.9,13.90660942]
[1763790317718,0.0669,2735.0,2734.9,14.46162258]
[1763790317921,0.071,2735.0,2734.9,14.56162258]
[1763790318218,0.5472,2735.0,2734.9,4.21118176]
[1763790318437,0.071,2735.0,2734.9,3.7801686]
[1763790318733,0.5472,2735.0,2734.9,3.7801686]
[1763790319083,0.5472,2735.0,2734.2,7.31466548]
[1763790319282,0.1817,2734.9,2734.4,0.1]
[1763790319814,0.1817,2734.9,2734.6,0.1]
[1763790320014,0.002,2735.0,2734.9,0.1]
[1763790320525,0.0669,2735.0,2734.9,0.1]
[1763790320828,0.0669,2735.0,2734.9,4.66343346]
[1763790321000,0.0669,2735.0,2734.9,5.50783301]
[1763790321923,0.002,2735.0,2734.9,9.20990897]
[1763790322121,0.002,2735.0,2734.9,20.41531502]
[1763790322536,0.002,2735.0,2734.9,19.53790897]
[1763790323326,0.002,2735.1,2735.0,4.81499264]
[1763790323525,0.002,2735.1,2735.0,9.33105929]
[1763790324637,1e-08,2735.2,2735.1,6.42099664]
[1763790324815,1e-08,2735.2,2735.1,6.87106578]
[1763790325212,1e-08,2735.2,2735.1,10.07717008]
[1763790325530,1e-08,2735.2,2735.1,12.03497341]
[1763790325715,0.002,2735.4,2735.3,4.413504]
[1763790325915,0.002,2735.4,2735.3,11.35162878]
[1763790326234,0.002,2735.6,2735.4,5.27049664]
[1763790326443,0.002,2735.6,2735.4,2.36539664]
[1763790326606,0.002,2735.6,2735.4,3.51519906]
[1763790327544,0.002,2735.6,2735.5,0.505504]
[1763790327707,0.002,2735.6,2735.5,1.90847314]
[1763790327903,0.4845,2736.8,2735.6,0.455504]
[1763790328108,0.4845,2736.8,2735.6,2.08247314]
[1763790328308,0.4845,2736.8,2735.9,0.05]
[1763790328510,0.1817,2738.2,2735.9,6.62442478]
[1763790328717,0.4845,2737.1,2735.9,7.08812478]
[1763790328946,0.1817,2738.2,2736.5,0.05]
[1763790329155,0.1817,2738.2,2736.6,1.1769]
[1763790329156,0.6384,2737.4,2736.6,1.1769]
[1763790329356,0.4845,2737.3,2736.6,0.92658926]
[1763790329542,0.1539,2737.7,2736.6,5.9514513]
[1763790329727,0.4845,2737.6,2736.6,5.9514513]
[1763790330522,0.4845,2737.6,2736.6,6.69508906]
[1763790330757,0.1539,2737.7,2736.6,6.69508906]
[1763790331053,0.1539,2737.7,2736.6,7.5506622]
[1763790331263,0.1539,2737.7,2736.9,0.05]
[1763790331466,0.1817,2738.2,2737.3,10.95970479]
[1763790331635,0.1817,2738.2,2738.1,0.1]
[1763790331833,0.1817,2738.2,2738.1,0.123]
[1763790332162,0.6356,2738.2,2738.1,0.123]
[1763790332343,0.1808,2738.4,2738.1,0.223]
[1763790332538,0.0951,2738.8,2738.4,0.1]
[1763790332758,0.1817,2738.7,2738.6,0.1]
[1763790333262,0.0767,2739.5,2738.8,0.1]
[1763790333263,0.1817,2738.9,2738.8,0.1]
[1763790333560,0.5612,2739.5,2739.0,3.6509675]
[1763790333760,0.5612,2739.5,2738.7,0.90699264]
[1763790333761,0.0649,2739.1,2738.7,0.90699264]
[1763790333934,0.275,2739.0,2738.8,0.123]
[1763790334128,0.4521,2738.9,2738.3,0.1]
[1763790334363,0.1817,2738.4,2738.1,0.90699264]
[1763790334551,0.1817,2738.9,2738.3,0.5892]
[1763790334860,0.1817,2738.9,2738.8,0.1]
[1763790335164,0.4845,2739.4,2738.8,0.223]
[1763790335460,0.2454,2738.9,2738.8,3.87423411]
[1763790335649,0.0767,2739.5,2738.9,0.90699264]
[1763790335855,0.1539,2740.0,2739.1,0.90699264]
[1763790336043,0.1539,2740.0,2739.9,0.1]
[1763790336240,0.2296,2740.0,2739.9,0.124]
[1763790336563,0.2296,2740.0,2739.9,0.224]
[1763790336564,0.6992,2740.0,2739.9,0.224]
[1763790336762,0.6992,2740.0,2739.9,0.123]
[1763790337152,0.2296,2740.0,2739.9,0.123]
[1763790337348,0.2296,2740.0,2739.9,0.223]
[1763790337868,0.2296,2740.0,2739.9,4.77976087]
[1763790338076,0.4736,2740.7,2740.0,0.90699264]
[1763790338373,0.4736,2740.7,2740.2,0.1]
[1763790338529,0.4736,2740.7,2740.3,0.124]
[1763790338942,0.0757,2740.4,2740.3,0.124]
[1763790339862,0.0757,2740.4,2740.0,0.1]
[1763790340051,0.0757,2740.4,2739.6,1.87869264]
[1763790340052,0.4696,2740.4,2740.3,0.123]
[1763790340271,0.5492,2740.4,2739.7,0.1]
[1763790340462,0.5492,2740.4,2739.1,9.28662232]
[1763790340463,0.4696,2740.4,2739.8,0.123]
[1763790340640,0.2319,2739.9,2739.4,0.90699264]
[1763790340846,0.2319,2739.9,2739.5,0.123]
[1763790341055,0.0031,2739.1,2738.9,0.1]
[1763790341240,0.0725,2739.0,2738.5,0.1]
[1763790341634,0.6544,2738.6,2738.2,0.1]
[1763790341837,0.6544,2738.6,2737.7,4.15078094]
[1763790341838,0.4915,2738.3,2737.8,0.1]
[1763790342037,0.0579,2738.5,2737.9,0.123]
[1763790342267,0.4736,2738.4,2737.9,0.123]
[1763790342457,0.0757,2738.0,2737.9,0.123]
[1763790342859,0.5457,2738.0,2737.9,0.123]
[1763790343055,0.5457,2738.0,2737.9,0.124]
[1763790343261,0.405504,2738.4,2737.9,0.124]
[1763790343459,0.47,2738.5,2737.9,0.124]
[1763790343650,0.47,2738.5,2737.9,0.224]
[1763790343847,0.1817,2738.6,2737.9,0.224]
[1763790343848,0.0796,2738.0,2737.9,0.124]
[1763790344058,0.5457,2738.0,2737.9,0.124]
[1763790345608,0.5457,2738.0,2737.3,0.90699264]
[1763790345814,0.1153,2737.9,2737.4,0.124]
[1763790346084,0.405504,2738.5,2737.8,0.1]
[1763790346250,0.1153,2737.9,2737.5,0.90699264]
[1763790346446,0.1153,2737.9,2737.6,0.124]
[1763790346671,0.0757,2737.7,2737.6,0.124]
[1763790346862,0.1153,2737.9,2737.6,0.124]
[1763790347061,0.4915,2737.7,2737.6,0.124]
[1763790347647,0.5494,2737.7,2737.6,0.124]
[1763790347986,0.4915,2737.7,2737.6,0.124]
[1763790348279,0.1153,2737.9,2737.6,1.03099264]
[1763790348482,0.1153,2737.9,2737.7,0.90699264]
[1763790349485,0.1153,2737.9,2737.7,1.00699264]
[1763790349685,0.1817,2738.6,2737.7,1.00699264]
[1763790349686,0.6553,2738.6,2737.8,0.4526]
[1763790349884,0.4736,2738.5,2737.7,5.12796564]
[1763790350681,0.4736,2738.5,2737.7,4.65958356]
[1763790351894,0.4736,2738.5,2737.7,8.21228473]
[1763790352061,0.1817,2738.6,2737.7,4.55958356]
[1763790352269,0.4736,2738.5,2737.7,4.55958356]
[1763790352465,0.4736,2738.5,2737.7,8.21228473]
[1763790353497,0.4736,2738.5,2737.7,0.90699264]
[1763790353687,0.4736,2738.5,2737.8,0.1]
[1763790353885,0.1906,2737.9,2737.6,0.124]
[1763790354086,0.076,2737.7,2737.6,0.124]
[1763790354588,0.5456,2737.7,2737.6,0.124]
[1763790354987,0.951104,2737.7,2737.6,0.124]
[1763790355500,0.405504,2737.6,2737.0,0.001]
[1763790355662,0.879104,2737.6,2737.3,0.124]
[1763790355868,0.076,2737.4,2737.3,0.124]
[1763790356296,0.5456,2737.4,2737.3,0.124]
[1763790357196,0.076,2737.4,2737.3,0.124]
[1763790359795,0.1149,2737.9,2737.3,0.124]
[1763790359796,0.405504,2737.8,2737.3,0.124]
[1763790359994,0.879104,2737.8,2737.3,0.124]
[1763790360172,0.076,2737.4,2737.3,0.124]
[1763790360901,0.405504,2737.8,2737.3,0.5766]
[1763790361103,0.879104,2737.8,2737.3,4.22983294]
[1763790361304,0.879104,2737.8,2737.3,0.124]
[1763790361600,0.076,2737.4,2737.0,0.001]
[1763790361800,0.405504,2737.6,2737.1,0.124]
[1763790362299,0.076,2737.2,2737.1,0.124]
[1763790363103,0.875104,2737.6,2737.1,0.124]
[1763790363311,0.5885,2737.9,2737.1,4.9679913]
[1763790363506,0.5885,2737.9,2737.2,0.49689913]
[1763790363705,0.1149,2737.9,2737.4,0.1]
[1763790364003,0.1149,2737.9,2737.5,0.124]
[1763790364004,0.1153,2737.9,2737.5,0.124]
[1763790364300,0.0757,2737.6,2737.5,0.124]
[1763790364900,0.5453,2737.6,2737.5,0.124]
[1763790365269,0.5453,2737.6,2737.0,0.001]
[1763790365270,0.5453,2737.6,2737.3,2.74917596]
[1763790365484,0.4696,2737.6,2737.3,2.87317596]
[1763790365883,0.405504,2737.8,2737.3,2.87317596]
[1763790366088,0.0755,2737.4,2737.3,2.87317596]
[1763790366284,0.4698,2737.7,2737.3,2.87317596]
[1763790366486,0.1153,2737.9,2737.4,1.00699264]
[1763790366695,0.1153,2737.9,2737.4,0.90699264]
[1763790366921,0.589,2737.9,2737.4,0.90699264]
[1763790368489,0.589,2737.9,2737.4,4.56008726]
[1763790368718,0.589,2737.9,2737.5,2.74917596]
[1763790369086,0.0755,2737.6,2737.5,2.74917596]
[1763790371021,0.5453,2737.6,2737.5,2.74917596]
[1763790371600,0.0755,2737.6,2737.5,2.74917596]
[1763790372102,0.5453,2737.6,2737.5,2.74917596]
[1763790372301,0.950804,2737.6,2737.5,2.74917596]
[1763790372800,0.405504,2737.5,2737.0,0.001]
[1763790372999,0.0755,2737.1,2737.0,0.001]
[1763790373402,0.5453,2737.1,2737.0,0.001]
[1763790374721,0.950804,2737.1,2737.0,0.001]
[1763790375524,0.405504,2737.0,2735.6,2.74917596]
[1763790375738,0.405504,2736.7,2735.4,2.94187596]
[1763790375944,0.481004,2736.5,2735.7,0.124]
[1763790376303,0.950804,2736.5,2735.7,0.124]
[1763790377732,0.405504,2736.4,2735.7,0.124]
[1763790378039,0.615604,2735.8,2735.7,0.124]
[1763790378428,1.085404,2735.8,2735.7,0.124]
[1763790379139,0.405504,2735.7,2734.9,0.1835]
[1763790379440,0.405504,2735.7,2734.5,2.75017596]